Cogmind - Beta 14 @@@ ROGUE MODE // 2024.11.04 @ 21:40:50 Player: Guy Result: Destroyed by D-53 Grenadier with Mini Grenade Launcher Performance ------------- Evolutions (0) 0 Regions Visited (2) 400 Robots Destroyed (19) 95 Value Destroyed (261) 261 Prototype IDs (0) 0 Alien Tech Used (0) 0 Bonus (0) 0 TOTAL SCORE: 756 Bonus ------- None Cogmind --------- Core Integrity 0/250 Matter 300/300 Energy 250/250 System Corruption 0% Temperature Cool (0) Movement Core (200) Ox3 Location -10/Mines Parts ------- > --- POWER (1) -------- Ion Engine > --- PROPULSION (2) --- (None) > --- UTILITY (2) ------ Small Storage Unit Utility Shielding > --- WEAPON (2) ------- (None) > --- INVENTORY (8) ---- Light Ion Engine Wheel High-capacity Battery (250) High-capacity Battery (250) High-capacity Battery (250) Peak State ------------ > --- POWER ------------ Ion Engine > --- PROPULSION ------- Aluminum Leg Aluminum Leg > --- UTILITY ---------- Seismic Detector Utility Shielding > --- WEAPON ----------- EM Pulse Gun Assault Rifle > --- INVENTORY -------- Light Ion Engine Aluminum Leg Wheel Wheel [Rating: 7] Favorites ----------- Power Ion Engine Engine Ion Engine Propulsion Aluminum Leg Leg Aluminum Leg Utility Utility Shielding Device Seismic Detector Storage Small Storage Unit Protection Utility Shielding Weapon Light Assault Rifle Energy Gun Small Laser Ballistic Gun Light Assault Rifle Build | -11 -10 -10 ------- Run | Yrd Mat Min Slots Evolved . | . . . Power . | . . . Propulsion . | . . . Utility . | . . . Weapon . | . . . Parts Attached 18 | 6 10 2 Power 4 | 2 2 . Engine 4 | 2 2 . Core . | . . . Reactor . | . . . Propulsion 6 | 2 2 2 Treads . | . . . Leg 6 | 2 2 2 Wheel . | . . . Hover . | . . . Flight . | . . . Utility 4 | . 4 . Device 2 | . 2 . Storage 1 | . 1 . Processor . | . . . Hackware . | . . . Protection 1 | . 1 . Artifact . | . . . Weapon 4 | 2 2 . Energy Gun 2 | 1 1 . Energy Cannon . | . . . Ballistic Gun 2 | 1 1 . Ballistic Cannon . | . . . Launcher . | . . . Special Weapon . | . . . Impact Weapon . | . . . Slashing Weapon . | . . . Piercing Weapon . | . . . Special Melee Weapon . | . . . Unidentified Prototypes . | . . . Parts Lost 9 | . 5 4 Power 1 | . 1 . Propulsion 3 | . 1 2 Utility 1 | . 1 . Weapon 4 | . 2 2 Highest Loss Streak 4 | . 3 4 To Critical Strikes . | . . . Average Slot Usage (%) 88 | . 86 96 Engine 11 | . 11 14 Leg 27 | . 27 26 Device 4 | . 5 . Storage 4 | . 1 14 Protection 13 | . 13 14 Energy Gun 11 | . 11 12 Ballistic Gun 13 | . 13 12 Peak Build Rating 7 | 5 7 7 Average Rating 5 | 4 6 6 On Entrance 4 | . 5 7 Naked Turns . | . . . Heaviest Build 13 | 9 13 13 Greatest Support 20 | 20 20 20 Greatest Overweight (x) 3 | . . 3 Average Overweight (x) . | . . . Largest Inventory Capacity 8 | 5 8 8 Average Capacity 5 | 5 5 8 Most Carried 8 | 5 8 8 Average Carried 4 | 2 4 6 Final Capacity 8 | 5 8 8 Final Carried 8 | 5 8 5 Class Distribution -------------------- 88% | Mutant 11% | Scavenger-Mutant Dominant Class ---------------- Mutant | -10/Materials Mutant | -10/Mines Resources | -11 -10 -10 ----------- Run | Yrd Mat Min Matter Collected 477 | 299 137 41 Remotely . | . . . Salvage Created 545 | 120 351 74 Parts 37 | 6 20 11 Haulers Intercepted . | . . . Recyclers Shooed 2 | . 2 . Parts Field Recycled . | . . . Retrieved Matter . | . . . Parts Self-Destructed . | . . . Prevented . | . . . Kills | -11 -10 -10 ------- Run | Yrd Mat Min Combat Hostiles Destroyed 10 | 1 6 3 Guns 10 | 1 6 3 Classes Destroyed 6 | 3 3 . Worker 5 | 1 2 2 Tunneler 2 | 2 . . Recycler 1 | . 1 . Operator 1 | . 1 . Swarmer 5 | . 2 3 Grunt 5 | 1 4 . Best Kill Streak 4 | 3 4 4 Combat Bots Only 3 | 1 2 3 Max Kills in Single Turn 1 | 1 1 1 Gunslinging . | . . . Exploded . | . . . Melee . | . . . Uniques/NPCs Destroyed . | . . . Combat | -11 -10 -10 -------- Run | Yrd Mat Min Hostile Shots Fired 127 | 9 98 20 Missed 39 | 3 33 3 Damage Taken 1115 | 67 628 420 Core 265 | 11 141 113 Absorbed by Shields . | . . . Redirected to Shielding 12 | . 8 4 Core Remaining (%) 95 | 95 . . Volleys Fired 69 | 13 42 14 Largest 2 | 2 2 2 Hottest 60 | 60 60 60 Shots Fired 119 | 21 71 27 Gun 119 | 21 71 27 Cannon . | . . . Launcher . | . . . Special . | . . . Kinetic 69 | 13 42 14 Thermal 29 | . 16 13 Explosive . | . . . Electromagnetic 21 | 8 13 . Robot Hit Streak 10 | 3 10 5 Robot Miss Streak 3 | 3 3 2 Penetration Max . | . . . Secondary Targets 2 | . . 2 Max Gunslinging Chain 1 | . . 1 Shots Hit Robots 69 | 10 44 15 Core Hits 29 | 5 16 8 Critical Kills . | . . . Critical Parts Destroyed . | . . . Critical Strikes 3 | 1 2 . Corrupt 3 | 1 2 . Melee Attacks . | . . . Impact . | . . . Slashing . | . . . Piercing . | . . . Sneak Attacks . | . . . Combat Hostiles . | . . . Follow-up Attacks . | . . . Damage Inflicted 795 | 169 493 133 Guns 793 | 169 491 133 Cannons . | . . . Explosions . | . . . Melee . | . . . Ramming 2 | . 2 . Kinetic 483 | 127 288 68 Thermal 173 | . 108 65 Explosive . | . . . Electromagnetic 137 | 42 95 . Impact . | . . . Slashing . | . . . Piercing . | . . . Highest Corruption . | . . . Average Corruption . | . . . Corruption Purged . | . . . Corruption Blocked . | . . . Overload Shots . | . . . Overflow Damage . | . . . Projectiles . | . . . Explosions . | . . . Melee . | . . . Knockbacks . | . . . Impact . | . . . Kinetic . | . . . Secondary . | . . . Self-Inflicted Damage . | . . . Shots . | . . . Rammed . | . . . Targets Rammed 2 | . 2 . Kicked 2 | . 2 . Crushed . | . . . Highest Temperature 76 | 36 76 40 Average Temperature 22 | 20 24 17 Received Heat Transfer 240 | 36 204 . Siege Activations . | . . . Robots Corrupted . | . . . Combat Hostiles . | . . . Parts Fried . | . . . Impact Corruptions . | . . . Robots Melted . | . . . Combat Hostiles . | . . . Parts Melted . | . . . Heat Transferred 400 | . 250 150 Parts Sabotaged . | . . . Parts Stolen . | . . . Parts Stripped . | . . . Power Chain Reactions . | . . . Alert | -11 -10 -10 ------- Run | Yrd Mat Min Peak Influence 263 | 35 263 182 Initial 102 | . 22 102 Average 135 | 11 170 170 Maximum Alert Level 1 | . 1 . Low Security (%) 81 | 100 68 100 Level 1 18 | . 31 . Level 2 . | . . . Level 3 . | . . . Level 4 . | . . . Level 5 . | . . . High Security . | . . . Max Security . | . . . Squads Dispatched 3 | . 3 . Investigation 1 | . 1 . Extermination . | . . . Reinforcement 2 | . 2 . Assault . | . . . Garrison . | . . . Intercept . | . . . Searches Triggered . | . . . Construction Impeded . | . . . Haulers Reinforced . | . . . Active Scanning Responses . | . . . Cargo Convoy Interrupts . | . . . Stealth | -11 -10 -10 --------- Run | Yrd Mat Min Distress Signals 2 | . 2 . Communications Jammed . | . . . Distress Signals . | . . . Times Spotted 22 | 1 16 5 Peak Tracking Total 5 | 1 5 3 Tactical Retreats 2 | . 2 . Traps | -11 -10 -10 ------- Run | Yrd Mat Min Traps Triggered . | . . . Indirectly . | . . . Trap Hack Attempts . | . . . Triggered . | . . . Disarmed . | . . . Reprogrammed . | . . . Reused . | . . . Traps Extracted . | . . . Installed . | . . . Triggered . | . . . Machines | -11 -10 -10 ---------- Run | Yrd Mat Min Machines Disabled . | . . . Max in Single Turn . | . . . Machines Repaired . | . . . Machines Dismantled . | . . . Machines Sabotaged . | . . . Overloaded Fab Kills . | . . . Hacking | -11 -10 -10 --------- Run | Yrd Mat Min Machines Accessed 1 | . 1 . Terminals 1 | . 1 . Fabricators . | . . . Repair Stations . | . . . Recycling Units . | . . . Scanalyzers . | . . . Garrison Access . | . . . Total Hacks 3 | . 3 . Successful 1 | . 1 . Failed 2 | . 2 . Catastrophic 1 | . 1 . Database Lockouts . | . . . Manual . | . . . Terminals 3 | . 3 . Fabricators . | . . . Repair Stations . | . . . Recycling Units . | . . . Scanalyzers . | . . . Garrison Access . | . . . Terminal Hacks 1 | . 1 . Alert Level 1 | . 1 . Fabricator Hacks . | . . . Repair Station Hacks . | . . . Recycling Unit Hacks . | . . . Scanalyzer . | . . . Garrison Access Hacks . | . . . Unauthorized Hacks . | . . . Terminals . | . . . Fabricators . | . . . Repair Stations . | . . . Recycling Units . | . . . Scanalyzers . | . . . Garrison Access . | . . . Data Cores Recovered 1 | . 1 . Used . | . . . Hacking Detections 1 | . 1 . Full Trace Events 1 | . 1 . Feedback Events . | . . . Feedback Blocked . | . . . Robot Schematics Acquired . | . . . Robots Built . | . . . Authchips . | . . . Time . | . . . Total Robot Build Rating . | . . . Part Schematics Acquired . | . . . Parts Built . | . . . Authchips . | . . . Time . | . . . Total Part Build Rating . | . . . Parts Repaired . | . . . Time . | . . . Parts Recycled . | . . . Recycled Matter . | . . . Retrieved Matter . | . . . Retrieved Components . | . . . Parts Scanalyzed . | . . . Part Schematics Acquired . | . . . Parts Damaged . | . . . Bothacking | -11 -10 -10 ------------ Run | Yrd Mat Min Used RIF Installer . | . . . Robots Hacked . | . . . Non-combat . | . . . Combat . | . . . Robot Hacks Applied . | . . . Relay Couplers Released . | . . . Fabnet Peak Effective % . | . . . Robots Rewired . | . . . Allies Hacked . | . . . Hacks Repelled . | . . . Allies | -11 -10 -10 -------- Run | Yrd Mat Min Total Allies . | . . . Largest Group . | . . . Highest-Rated Group . | . . . Highest-Rated Ally . | . . . Total Orders . | . . . Ally Attacks . | . . . Total Damage . | . . . Kills . | . . . Allies Corrupted . | . . . Allies Melted . | . . . Intel | -11 -10 -10 ------- Run | Yrd Mat Min Robot Analysis Total . | . . . Derelict Logs Recovered . | . . . Drone Launches . | . . . Drone Recoveries . | . . . Exploration | -11 -10 -10 ------------- Run | Yrd Mat Min Turns Passed 672 | 150 390 132 Spaces Moved 378 | 95 209 74 Core 20 | 19 . 1 Treads . | . . . Legs 358 | 76 209 73 Wheels . | . . . Hover . | . . . Flight . | . . . Fastest Speed 50 | 50 120 120 Average Speed 116 | 106 120 122 Slowest Speed 200 | 120 120 200 Overloaded Moves . | . . . Propulsion Burnouts . | . . . Robots Hopped . | . . . Cave-ins Triggered . | . . . Exploration Rate (%) 20 | 8 28 25 Regions Visited 2 Branch Regions 1 Pre-discovered Areas 1 | . . 1 Known Exits Taken . | . . . Unknown Exits Taken 2 | 1 1 . Scrap Searched . | . . . Spaces Dug . | . . . Terrain Destroyed . | . . . Melee . | . . . Projectile . | . . . AOE . | . . . Terrain Rammed . | . . . Walls Destroyed . | . . . Machines Disabled . | . . . Actions | -11 -10 -10 --------- Run | Yrd Mat Min Total 496 | 123 280 93 Wait 11 | . 11 . Move 376 | 94 208 74 Hop . | . . . Pick Up 15 | 10 5 . Fast Attach 4 | . 4 . Attach 9 | 5 4 . Detach 1 | . 1 . Swap 5 | 1 2 2 Drop 4 | . 1 3 Fire 69 | 13 42 14 Melee . | . . . Ram . | . . . Kick 2 | . 2 . Crush . | . . . Escape Stasis . | . . . Rewire . | . . . Trap . | . . . Miscellaneous . | . . . Route ------- -11/Scrapyard -10/Materials -10/Mines History --------- Turn | Location | Event 2 | -11/Scrapyard | Met Revision 17 75 | -11/Scrapyard | Discovered new exit (range 8) 151 | -11/Scrapyard | Entered Materials 300 | -10/Materials | Build established: Mutant 351 | -10/Materials | Lost 3 parts (1n1u1w) 406 | -10/Materials | Core integrity fell below 50% 531 | -10/Materials | Discovered new exit (range 10) 541 | -10/Materials | Entered Mines 610 | -10/Mines | Assembled infested the area 617 | -10/Mines | Learned location of Storage (-8) 663 | -10/Mines | Core integrity fell below 20% 673 | -10/Mines | Destroyed by D-53 Grenadier with Mini Grenade Launcher Last Messages --------------- K-01 Serf destroyed. Acquired 8 matter. A derelict emerges from the shadows: "Are any of them following you? I'm here trying to lose some heat after our second raid on Storage failed. Whatever you do stay away from that place, they've tightened security following our previous successful raids." World map updated: -8/Storage. 9K-5E0(g): "We scattered so the Unaware couldn't effectively use their advantage in numbers, and I suggest you do the same." 9K-5E0(g) slips back into the shadows. C-30 ARC bursts open, deploying its payload. D-53 Grenadier unfolds itself. Laser Drill disabled. Sml. Laser destroyed. Lgt. Assault Rifle destroyed. Aluminum Leg destroyed. The unstable cave ceiling collapses. Map ----- +----------------------------------------------------+ | ?????????????????????????????????????????????????? | | ?????????????????????????????????????????????????? | | ?????????????????????????????????????????????????? | | ?????????????????????????????????????????????????? | | ?????????????????????????????????????????????????? | | ?????????????????????????????????????????????????? | | ?????????????????????????????????????????????????? | | ????????????????????????# ???????????????????????? | | ???????????????????????# ????????????????????? | | ??????????????????????? ???????????????????? | | ??????????????????????? ????????????????##?? | | ??????????????????#???# ????????????????# ?? | | ??????????????????# ?? ????????????????# ?? | | ??????????????????# ??# ???????????????# ??? | | ??????????????????# ?## ????????????#### ??? | | ??????????????????# ## ?????????????# ???? | | ?????????????????## #????????????? ????? | | ????????????????## #?????????????? ????? | | ???????????????## %##?####????????? ?????? | | ???????????????# rdd ### ##????????# #?????? | | ???????????????# ## ###???#### ######? | | ???????????????# ##??# * #? | | ?????????????# # #??# =%= #? | | ?????????????# ## #??# ##### #? | | ?????????????## ## ##??# #???# #? | | ?????????????# @ #?####???# #???# #? | | ????????????# " #????????# #???# #? | | ????????????# " #????????# ##### ## | | ????????????## ########## ## | | ?????????????#### ## | | ????????????????## # ## """ "" | | ?????????????????# ## ########### ## """ "" | | ????????????????# ?## # ?????????# ## """ "" | | ???????????????# ??# t## ????????? ## | | ??????????????# #??# ##?? ???????? ## | | ?????????????? ###???###??? ???????? ######### | | ?????????????? #????????????? ??????? #???????? | | ???????????????? ?????????????? "??????? #???????? | | ????????????????????????????????"??????? #???????? | | ????????????????????????????????????????##???????? | | ?????????????????????????????????????????????????? | | ?????????????????????????????????????????????????? | | ?????????????????????????????????????????????????? | | | | | | | | | | | | | | | +----------------------------------------------------+ Best States ------------- Heat Dissipation 25 Energy Generation 10 Energy Capacity 250 Matter Stores 300 Matter Capacity 300 Sight Range 16 Terrain Scan Density 10 Utility Shielding 33 Evasion (%) 55 Item Schematics ----------------- None Robot Schematics ------------------ None Fabricated ------------ Nothing Alien Tech Used ----------------- None Achievements -------------- One Hack Too Far Challenges ------------ None Game ------ Seed BarrageReactionCutter Manual? 0 Play Time 00:20:19 Cumulative 0.6 hours Start 2024.11.04 @ 18:18:08 End 2024.11.04 @ 21:40:50 Sessions 2 Manual Loads 0 Difficulty Rogue Special Mode None Game No. 2 Rogue 2 Adventurer 0 Explorer 0 Win Type - Total 0 Types 0/0/0/0/0/0/0/0/0 Lore% 0 Gallery% 1 Achievement% 2 Wizard Run 0 Options --------- Layout 1 ASCII 0 Keyboard 0 Movement Numpad Keybinds 0 Fullscreen 0 Font 42/SmallcapsGlow Map View 50x35 Zoom Use 0% Tactical HUD 0 Map Filters NONE Filters NONE Steam 1 RUN: a6d007ac-8cd5-4a92-b5f3-2ddbeff0a574